bitfinex/quotes_BTCUSD_20220207
["timestamp","ask_amount","ask_price","bid_price","bid_amount"]
[1644257221111,0.17443356,44227.0,44226.0,0.83127745]
[1644257221510,0.17443356,44227.0,44226.0,0.88127745]
[1644257221711,0.09924085,44232.0,44228.0,0.056527]
[1644257221912,0.09924085,44232.0,44231.0,0.28536632]
[1644257222112,0.01956563,44236.0,44231.0,0.63231181]
[1644257222316,0.0003,44250.0,44235.0,0.05]
[1644257222516,0.0003,44250.0,44249.0,0.05]
[1644257222716,0.0003,44250.0,44249.0,0.0953]
[1644257222916,0.0003,44250.0,44249.0,0.151807]
[1644257223113,0.0003,44250.0,44249.0,0.43162439]
[1644257223516,0.0003,44250.0,44249.0,1.03549922]
[1644257223770,0.002,44262.0,44250.0,0.85]
[1644257223967,0.002,44262.0,44253.0,0.05]
[1644257224168,0.002,44262.0,44253.0,0.0953]
[1644257224867,0.00055117,44256.0,44253.0,0.37938965]
[1644257225064,0.00264051,44262.0,44253.0,0.37938965]
[1644257225265,0.00264051,44262.0,44255.0,0.056496]
[1644257225468,0.00264051,44262.0,44259.0,0.05]
[1644257225666,0.00043617,44262.0,44260.0,0.30171524]
[1644257225869,0.00043617,44263.0,44261.0,0.0453]
[1644257226065,0.00043617,44263.0,44262.0,0.0453]
[1644257226265,0.00043617,44263.0,44262.0,0.31343954]
[1644257226470,0.00043617,44263.0,44262.0,0.0453]
[1644257226668,0.00043617,44263.0,44256.0,0.0453]
[1644257226867,0.00043617,44263.0,44259.0,0.01911897]
[1644257227615,0.00043617,44263.0,44260.0,0.23021384]
[1644257228418,0.00043617,44263.0,44258.0,0.21778252]
[1644257228419,0.5,44262.0,44258.0,0.21778252]
[1644257228618,0.5,44262.0,44258.0,0.25758513]
[1644257228818,0.00043617,44263.0,44258.0,0.35288513]
[1644257229617,0.00060166,44263.0,44258.0,0.35288513]
[1644257229819,0.00060166,44263.0,44259.0,0.26106449]
[1644257230218,0.00031182,44264.0,44259.0,0.31106449]
[1644257230818,0.00031182,44264.0,44260.0,0.056488]
[1644257231022,0.00031182,44264.0,44261.0,0.25675658]
[1644257231265,0.00031182,44264.0,44261.0,0.35675658]
[1644257231862,0.00031182,44264.0,44261.0,0.30675658]
[1644257232162,0.00031182,44264.0,44261.0,0.30331378]
[1644257232968,0.00031182,44264.0,44262.0,0.10178]
[1644257233167,0.00031182,44264.0,44263.0,0.32645962]
[1644257233365,0.00031182,44264.0,44263.0,0.1403]
[1644257233564,0.00031182,44264.0,44263.0,0.3453]
[1644257233764,0.00031182,44264.0,44263.0,0.0453]
[1644257233963,3.968e-05,44264.0,44263.0,0.0453]
[1644257234566,0.003,44278.0,44265.0,0.7]
[1644257234767,0.00519717,44272.0,44267.0,0.05647]
[1644257235007,0.00519717,44272.0,44268.0,0.0453]
[1644257235208,0.00019717,44272.0,44269.0,0.37545745]
[1644257235409,0.003,44278.0,44270.0,0.0453]
[1644257235613,0.003,44278.0,44271.0,0.50348086]
[1644257235814,0.02118691,44273.0,44272.0,0.40759817]
[1644257236211,0.02118691,44273.0,44272.0,0.55759817]
[1644257236610,0.002,44275.0,44273.0,0.3]
[1644257236810,0.003,44278.0,44274.0,0.40193143]
[1644257237012,0.002,44278.0,44274.0,0.45193143]
[1644257237210,0.002,44278.0,44274.0,0.55193143]
[1644257237409,0.002,44278.0,44274.0,0.45193143]
[1644257237610,0.002,44278.0,44274.0,0.40663143]
[1644257238010,0.002,44278.0,44275.0,0.0416]
[1644257238860,0.045,44285.0,44277.0,0.005]
[1644257239061,0.002,44291.0,44277.0,0.005]
[1644257239062,0.002,44291.0,44289.0,0.20934054]
[1644257239265,0.002,44291.0,44290.0,0.0966]
[1644257239661,0.002,44291.0,44290.0,0.1466]
[1644257240063,0.002,44291.0,44290.0,0.36678895]
[1644257240263,0.002,44291.0,44290.0,0.42323895]
[1644257240668,0.39543075,44299.0,44291.0,0.10644319]
[1644257240669,0.17689546,44299.0,44291.0,0.10644319]
[1644257240864,0.17689546,44299.0,44292.0,0.0416]
[1644257241264,0.16389546,44299.0,44293.0,0.25796703]
[1644257241468,0.11828471,44299.0,44295.0,0.056445]
[1644257241664,11.64451394,44300.0,44296.0,0.27150385]
[1644257241866,11.64451394,44300.0,44299.0,0.24070282]
[1644257242063,11.64451394,44300.0,44299.0,0.28230282]
[1644257242509,11.64451394,44300.0,44299.0,0.0416]
[1644257242711,11.64451394,44300.0,44299.0,0.31136063]
[1644257243109,11.24451394,44300.0,44299.0,0.31136063]
[1644257243615,11.24451394,44300.0,44299.0,0.0416]
[1644257244617,11.24451394,44300.0,44286.0,0.27205725]
[1644257244811,11.24451394,44300.0,44279.0,0.056454]
[1644257244812,0.045,44288.0,44279.0,0.056454]
[1644257245211,0.045,44288.0,44283.0,0.21153073]
[1644257245611,0.045,44288.0,44283.0,0.420938]
[1644257245812,0.045,44288.0,44283.0,0.533846]
[1644257246014,0.045,44293.0,44283.0,0.590295]
[1644257246265,0.045,44296.0,44290.0,0.005]
[1644257246463,11.24451394,44300.0,44289.0,0.0466]
[1644257246464,0.045,44298.0,44289.0,0.0466]
[1644257246662,11.24451394,44300.0,44291.0,0.26120811]
[1644257246862,11.24451394,44300.0,44299.0,0.056433]
[1644257247263,11.28951394,44300.0,44292.0,0.0416]
[1644257247461,11.24451394,44300.0,44298.0,0.05]
[1644257247662,0.045,44299.0,44298.0,0.05]
[1644257247863,0.045,44299.0,44290.0,0.24072206]
[1644257247864,0.12211372,44299.0,44290.0,0.24072206]
[1644257248061,0.045,44295.0,44290.0,0.24072206]
[1644257248263,11.24451394,44300.0,44294.0,0.005]
[1644257248463,11.24451394,44300.0,44298.0,0.005]
[1644257249061,11.24451394,44300.0,44298.0,0.0466]
[1644257249264,11.24451394,44300.0,44299.0,0.26508108]
[1644257249463,11.24451394,44300.0,44299.0,0.36311408]
[1644257249662,11.24451394,44300.0,44299.0,0.41311408]
[1644257249916,11.24451394,44300.0,44299.0,0.51311408]
[1644257250116,11.24451394,44300.0,44299.0,0.248033]
[1644257250517,11.24451394,44300.0,44294.0,0.174284]
[1644257250518,11.24451394,44300.0,44290.0,0.01972074]
[1644257250919,0.11912702,44291.0,44290.0,0.01972074]
[1644257251116,0.045,44291.0,44290.0,0.01972074]
[1644257251817,0.04472809,44291.0,44290.0,0.01972074]
[1644257252218,0.02972809,44291.0,44290.0,0.01972074]
[1644257253018,0.02972809,44291.0,44290.0,0.01937074]
[1644257253671,0.02972809,44291.0,44283.0,0.24634094]
[1644257253869,0.02972809,44284.0,44283.0,0.24634094]
[1644257254269,0.0223154,44284.0,44283.0,0.24634094]
[1644257255165,0.0223154,44284.0,44283.0,0.56329281]
[1644257255366,0.00216631,44292.0,44283.0,0.56329281]
[1644257255567,0.0223154,44290.0,44283.0,0.56329281]
[1644257256869,0.0223154,44290.0,44283.0,0.31695187]
[1644257257067,0.0223154,44290.0,44283.0,0.33699919]
[1644257257271,0.02048305,44290.0,44283.0,0.31695187]
[1644257257519,0.02048305,44287.0,44283.0,0.31683187]
[1644257257721,0.26085618,44286.0,44283.0,0.31683187]
[1644257258420,0.02048305,44284.0,44283.0,0.31683187]
[1644257258620,0.02048305,44284.0,44275.0,0.112919]
[1644257258621,0.07213913,44277.0,44275.0,0.112919]
[1644257258823,0.02048305,44276.0,44272.0,0.11363895]
[1644257259529,0.02048305,44280.0,44274.0,0.02951695]
[1644257259723,0.89005057,44291.0,44280.0,0.2635354]
[1644257260023,0.89005057,44291.0,44280.0,0.3135354]
[1644257260024,0.00158389,44284.0,44280.0,0.3135354]
[1644257260222,0.00158389,44284.0,44280.0,0.34305235]
[1644257260421,0.00158389,44284.0,44283.0,0.178298]
[1644257260823,0.00158389,44284.0,44283.0,0.228298]
[1644257261282,0.00158389,44284.0,44283.0,0.55781495]
[1644257261683,0.00158389,44284.0,44283.0,0.35781495]
[1644257262783,0.00158389,44284.0,44283.0,0.25781495]
[1644257262984,0.00158389,44284.0,44283.0,0.35781495]
[1644257263784,0.00158389,44284.0,44283.0,0.62471439]
[1644257264184,0.00197863,44284.0,44283.0,0.62471439]
[1644257264916,0.00197863,44284.0,44283.0,0.35781495]
[1644257265316,0.00197863,44284.0,44283.0,0.63965705]
[1644257267124,0.00180494,44292.0,44286.0,0.112874]
[1644257267323,0.00180494,44292.0,44291.0,0.02951695]
[1644257267520,0.00180494,44292.0,44291.0,0.07111695]
[1644257267720,0.00180494,44292.0,44291.0,0.25946259]
[1644257267918,0.00045121,44295.0,44291.0,0.25946259]
[1644257267919,0.01548305,44297.0,44291.0,0.25946259]
[1644257268118,0.00045129,44295.0,44291.0,0.30946259]
[1644257268524,0.01548305,44292.0,44283.0,0.178298]
[1644257268777,0.01548305,44289.0,44283.0,0.178298]
[1644257269374,0.01548305,44289.0,44286.0,0.53353624]
[1644257269981,0.01548305,44289.0,44286.0,0.56805319]
[1644257270377,0.01548305,44298.0,44286.0,0.61805319]
[1644257270578,0.00045095,44295.0,44288.0,0.2524271]
[1644257270778,0.00045095,44295.0,44294.0,0.27397728]
[1644257270976,0.00045095,44295.0,44294.0,0.6016511]
[1644257271276,0.00045095,44295.0,44294.0,0.6516511]
[1644257271478,0.52473,44299.0,44294.0,0.7516511]
[1644257271675,0.52473,44299.0,44294.0,0.8080811]
[1644257271876,0.00045101,44297.0,44294.0,0.8080811]
[1644257272277,0.52473,44299.0,44296.0,0.25429638]
[1644257272278,0.51718101,44299.0,44296.0,0.25429638]
[1644257272516,0.51266624,44299.0,44297.0,0.29696521]
[1644257272813,0.51266624,44299.0,44298.0,0.25824702]
[1644257273214,0.51266624,44299.0,44298.0,0.0916]
[1644257273415,0.68757624,44299.0,44298.0,0.0916]
[1644257273615,0.68757624,44299.0,44298.0,0.0416]
[1644257274014,0.68757624,44299.0,44298.0,0.210867]
[1644257274918,0.68757624,44299.0,44298.0,0.24565574]
[1644257275117,0.86248624,44299.0,44298.0,0.210867]
[1644257275316,0.86248624,44299.0,44298.0,0.24565574]
[1644257275916,0.85748624,44299.0,44298.0,0.24565574]
[1644257277161,1.03239624,44299.0,44298.0,0.24565574]
[1644257277966,1.03219596,44299.0,44298.0,0.210867]
[1644257278164,1.03219596,44299.0,44298.0,0.24565574]
[1644257278563,1.03219596,44299.0,44298.0,0.210867]
[1644257278766,1.03219596,44299.0,44298.0,0.24565574]
[1644257279164,1.03219596,44299.0,44298.0,0.210867]
[1644257280818,1.03219596,44299.0,44298.0,0.169267]
[1644257281017,1.03219596,44299.0,44297.0,0.05]
[1644257281220,0.01521126,44298.0,44294.0,0.01933284]
[1644257281421,0.21173816,44297.0,44294.0,0.01933284]
[1644257281617,0.01521126,44295.0,44294.0,0.07578084]
[1644257281818,0.22694942,44297.0,44294.0,0.07578084]
[1644257282217,0.21173816,44297.0,44294.0,0.07578084]
[1644257283216,0.21173816,44297.0,44294.0,0.12578084]
[1644257283418,0.21173816,44297.0,44294.0,0.106448]
[1644257283863,0.01521126,44298.0,44294.0,0.106448]
[1644257284066,1.0323289,44299.0,44294.0,0.106448]
[1644257284364,1.0323289,44299.0,44295.0,0.112871]
[1644257284565,0.01521126,44298.0,44295.0,0.112871]
[1644257285570,0.01500726,44298.0,44295.0,0.112871]
[1644257285968,1.37104674,44299.0,44295.0,0.14786374]
[1644257285969,1.28329803,44299.0,44295.0,0.14786374]
[1644257286168,1.28374937,44299.0,44295.0,0.112871]
[1644257286969,0.07400747,44298.0,44295.0,0.112871]
[1644257287169,0.01500726,44296.0,44295.0,0.112871]
[1644257287429,0.01500726,44296.0,44291.0,0.01993667]
[1644257287626,0.01500726,44292.0,44291.0,0.01993667]
[1644257287826,0.07400747,44298.0,44291.0,0.01993667]
[1644257287827,0.01500726,44296.0,44291.0,0.01993667]
[1644257288326,0.21271247,44292.0,44291.0,0.01993667]
[1644257288527,0.21244077,44292.0,44291.0,0.01993667]
[1644257288927,0.20219351,44292.0,44291.0,0.01993667]
[1644257289529,0.20219351,44292.0,44291.0,0.07301267]
[1644257290733,0.01500726,44293.0,44291.0,0.07301267]
[1644257291174,0.01500726,44294.0,44291.0,0.07301267]
[1644257291368,0.05314473,44298.0,44291.0,0.07301267]
[1644257291769,1.2641253,44299.0,44291.0,0.32957272]
[1644257291970,1.26367542,44299.0,44291.0,0.32957272]
[1644257292171,1.26154094,44299.0,44291.0,0.32957272]
[1644257292370,1.26154094,44299.0,44291.0,0.07301267]
[1644257293274,0.06526292,44298.0,44291.0,0.07301267]
[1644257293472,0.04026292,44298.0,44291.0,0.07301267]
[1644257293974,1.03006149,44299.0,44291.0,0.07301267]
[1644257294174,1.03006149,44299.0,44291.0,0.38594825]
[1644257294374,1.02958653,44299.0,44295.0,0.05]
[1644257294574,1.03006149,44299.0,44296.0,0.28814903]
[1644257294772,1.03006149,44299.0,44298.0,0.05]
[1644257295013,1.20497149,44299.0,44298.0,0.05]
[1644257295214,1.20497149,44299.0,44296.0,0.54458203]
[1644257295413,1.20449653,44299.0,44296.0,0.54458203]
[1644257295614,1.20449653,44299.0,44296.0,0.256433]
[1644257296215,1.37940653,44299.0,44296.0,0.256433]
[1644257296417,1.37940653,44299.0,44296.0,0.14281503]
[1644257299363,1.37940653,44299.0,44296.0,0.08638203]
[1644257299565,0.07451926,44298.0,44295.0,0.212866]
[1644257299765,0.07451926,44298.0,44290.0,0.462894]
[1644257299766,0.07451926,44298.0,44290.0,0.362894]
[1644257299964,0.07451926,44298.0,44290.0,0.25]
[1644257300965,0.25997465,44296.0,44290.0,0.25]
[1644257301373,0.85,44294.0,44283.0,0.34612174]
[1644257301566,0.85,44294.0,44283.0,0.302998]
[1644257301567,0.01999041,44288.0,44283.0,0.302998]
[1644257301765,0.01999041,44288.0,44287.0,0.01985546]
[1644257302413,0.32182185,44288.0,44287.0,0.01985546]
[1644257302613,0.30183144,44288.0,44283.0,0.359457]
[1644257303817,0.30118669,44288.0,44283.0,0.359457]
[1644257304014,0.30118669,44288.0,44283.0,0.459457]
[1644257305317,0.30118669,44288.0,44283.0,0.409457]
[1644257305618,0.29618669,44288.0,44283.0,0.459457]
[1644257306667,0.29591499,44288.0,44283.0,0.459457]
[1644257306866,0.8916,44294.0,44283.0,0.459457]
[1644257307068,0.8916,44294.0,44286.0,0.056457]
[1644257307069,0.85,44294.0,44286.0,0.056457]
[1644257307569,0.85,44294.0,44286.0,0.106457]
[1644257307767,0.17491,44288.0,44286.0,0.156457]
[1644257309671,0.17491,44288.0,44287.0,0.27259254]
[1644257309923,0.02078277,44296.0,44288.0,0.7]
[1644257310222,0.02078277,44296.0,44295.0,0.106432]
[1644257310420,0.02078277,44296.0,44295.0,0.37249269]
[1644257310620,0.02078277,44296.0,44295.0,0.47249269]
[1644257310821,0.02078277,44296.0,44295.0,0.73209036]
[1644257311021,0.02078277,44296.0,44295.0,0.83209036]
[1644257311425,1.37994793,44299.0,44295.0,0.83209036]
[1644257311622,1.37947193,44299.0,44295.0,0.83209036]
[1644257312021,1.37947193,44299.0,44295.0,0.56602967]
[1644257312223,1.37947193,44299.0,44295.0,0.51602967]
[1644257312423,1.37893053,44299.0,44295.0,0.51602967]
[1644257312622,1.37947195,44299.0,44295.0,0.41602967]
[1644257313024,1.37947195,44299.0,44295.0,0.31602967]
[1644257313226,1.37947195,44299.0,44295.0,0.0416]
[1644257313427,1.37947195,44299.0,44295.0,0.0372077]
[1644257313673,1.37893053,44299.0,44295.0,0.0372077]
[1644257313865,1.37947195,44299.0,44295.0,0.0372077]
[1644257314269,0.21915914,44298.0,44295.0,0.0372077]
[1644257314666,0.21915914,44298.0,44293.0,0.1]
[1644257314965,0.21915914,44298.0,44293.0,0.05]
[1644257315165,0.21915914,44298.0,44289.0,0.362884]
[1644257315365,0.21915914,44298.0,44296.0,0.056445]
[1644257315767,0.21915914,44298.0,44293.0,0.212887]
[1644257315965,0.21915914,44298.0,44293.0,0.162887]
[1644257316170,0.21915914,44298.0,44293.0,0.212887]
[1644257316569,0.21915914,44298.0,44293.0,0.207887]
[1644257316967,0.21915914,44298.0,44295.0,0.056443]
[1644257318217,0.39406914,44298.0,44295.0,0.056443]
[1644257318624,0.39406914,44298.0,44293.0,0.112887]
[1644257319717,0.39406914,44298.0,44293.0,0.162887]
[1644257320118,0.39406914,44298.0,44293.0,0.212887]
[1644257320318,0.17491,44298.0,44293.0,0.212887]
[1644257321177,0.17491,44298.0,44294.0,0.056443]
[1644257322575,0.17491,44298.0,44297.0,0.05]
[1644257322777,0.17491,44298.0,44297.0,0.34129518]
[1644257322976,0.17491,44298.0,44297.0,0.65730343]
[1644257323174,0.17491,44298.0,44297.0,0.80730343]
[1644257323976,0.17491,44298.0,44297.0,0.84890343]
[1644257324177,1.37893053,44299.0,44298.0,0.5]
[1644257324380,1.37893053,44299.0,44298.0,0.698019]
[1644257324779,1.04042653,44299.0,44298.0,0.698019]
[1644257325014,1.04042653,44299.0,44298.0,0.198019]
[1644257325415,0.20898102,44299.0,44298.0,0.438019]
[1644257325616,0.06252764,44299.0,44298.0,0.638019]
[1644257325818,0.06252764,44299.0,44298.0,0.738019]
[1644257326115,11.24451394,44300.0,44298.0,0.49443143]
[1644257326116,10.96857458,44300.0,44298.0,0.49443143]
[1644257326316,4.16415095,44300.0,44299.0,0.469233]
[1644257326516,4.16415095,44300.0,44299.0,0.75650101]
[1644257326517,3.56630549,44300.0,44299.0,0.75650101]
[1644257326719,3.39889939,44300.0,44299.0,0.90650101]
[1644257326919,2.90339149,44300.0,44299.0,0.90650101]
[1644257327116,2.90339149,44300.0,44299.0,0.86490101]
[1644257327316,2.90339149,44300.0,44299.0,0.56490101]
[1644257327520,0.01740832,44309.0,44302.0,0.05640426]
[1644257327722,0.003,44323.0,44308.0,0.05]
[1644257328020,0.003,44323.0,44317.0,0.9]
[1644257328219,0.003,44323.0,44318.0,0.0452]
[1644257328675,0.003,44323.0,44319.0,0.30228322]
[1644257328869,0.003,44323.0,44319.0,0.50228322]
[1644257329067,0.003,44323.0,44320.0,0.0452]
[1644257329571,0.00316243,44323.0,44320.0,0.0452]
[1644257329970,0.00316243,44323.0,44322.0,0.106405]
[1644257330170,0.00316243,44323.0,44322.0,0.43940353]
[1644257330470,0.003,44323.0,44322.0,0.38940353]
[1644257330671,0.003,44323.0,44322.0,0.48940353]
[1644257330970,0.003,44323.0,44322.0,0.58940353]
[1644257331169,0.003,44323.0,44322.0,0.48940353]
[1644257331670,0.003,44323.0,44322.0,0.43940353]
[1644257331871,0.003,44323.0,44322.0,0.1]
[1644257332075,0.003,44323.0,44321.0,0.08698708]
[1644257332272,0.003,44323.0,44322.0,0.0952]
[1644257332520,0.003,44323.0,44322.0,0.151605]
[1644257333721,0.003,44323.0,44322.0,0.101605]
[1644257334523,0.003,44323.0,44322.0,0.151605]
[1644257334725,0.003,44323.0,44322.0,0.41543312]
[1644257334925,0.003,44323.0,44322.0,0.51543312]
[1644257335128,0.000503,44325.0,44323.0,0.85]
[1644257335326,0.001,44326.0,44323.0,1.2952]
[1644257335527,0.001,44327.0,44324.0,9.999e-05]
[1644257335725,0.00044359,44325.0,44324.0,0.25039779]
[1644257335925,0.002,44329.0,44324.0,0.25039779]
[1644257335926,0.00177411,44331.0,44325.0,0.85]
[1644257336180,0.00177411,44331.0,44329.0,0.05]
[1644257336379,0.001,44340.0,44331.0,0.85]
[1644257336577,0.001,44340.0,44336.0,0.05]
[1644257336578,0.001,44338.0,44336.0,0.05]
[1644257336777,0.001,44338.0,44337.0,0.0452]
[1644257336976,0.004,44343.0,44339.0,0.46708107]
[1644257336977,0.003,44343.0,44339.0,0.46708107]
[1644257337176,0.003,44343.0,44342.0,0.106365]
[1644257337378,0.003,44343.0,44342.0,0.391565]
[1644257337577,0.003,44343.0,44342.0,0.441565]
[1644257337776,0.003,44343.0,44342.0,0.591565]
[1644257337980,0.003,44343.0,44341.0,0.11273]
[1644257338180,0.18941808,44342.0,44341.0,0.11273]
[1644257338382,0.18941808,44342.0,44336.0,0.112765]
[1644257338578,0.18941808,44342.0,44334.0,0.0211525]
[1644257338579,0.23839443,44335.0,44334.0,0.0211525]
[1644257338782,0.23839443,44335.0,44329.0,0.5]
[1644257338979,0.25642424,44334.0,44317.0,0.28813877]
[1644257339179,0.25642424,44334.0,44324.0,0.056401]
[1644257339379,0.25642424,44334.0,44325.0,0.01867517]
[1644257339779,0.19311985,44328.0,44325.0,0.01867517]
[1644257340022,0.25642424,44334.0,44325.0,0.01867517]
[1644257340220,0.25642424,44334.0,44325.0,0.06867517]
[1644257340420,0.00053379,44333.0,44325.0,0.06867517]
[1644257340820,0.00053379,44333.0,44325.0,0.12507417]
[1644257341218,0.23145573,44330.0,44325.0,0.12507417]
[1644257341527,0.28122573,44330.0,44324.0,0.01888489]
[1644257341723,0.28122573,44330.0,44305.0,0.06771241]
[1644257341724,0.30080194,44328.0,44305.0,0.06771241]
[1644257341921,0.06485756,44321.0,44304.0,0.5]
[1644257342123,0.06485756,44321.0,44302.0,0.138278]
[1644257342321,0.24024682,44319.0,44305.0,0.056424]
[1644257342724,0.19772817,44316.0,44305.0,0.056424]
[1644257343124,0.21422068,44319.0,44307.0,0.24621027]
[1644257343326,0.21422068,44319.0,44307.0,0.11283]
[1644257343525,0.21422068,44319.0,44303.0,0.356425]
[1644257343775,2.16555016,44327.0,44302.0,0.08186]
[1644257343776,0.23709378,44325.0,44305.0,0.10640868]
[1644257343973,0.23709378,44325.0,44307.0,0.056409]
[1644257344181,0.23709378,44325.0,44308.0,0.44063291]
[1644257344374,0.00016065,44331.0,44309.0,0.6]
[1644257344375,0.62699732,44328.0,44309.0,0.6]
[1644257344574,0.20817958,44325.0,44310.0,0.21898136]
[1644257344775,0.22992912,44324.0,44315.0,0.056411]
[1644257345178,0.22992912,44324.0,44315.0,0.05715049]
[1644257345375,0.62699732,44328.0,44315.0,0.05715049]
[1644257346277,0.62699732,44328.0,44319.0,0.00073944]
[1644257346478,0.88533387,44328.0,44319.0,0.05714944]
[1644257346878,0.62699732,44328.0,44320.0,0.05]
[1644257347080,0.62699732,44328.0,44321.0,0.0415]
[1644257347279,0.2015,44333.0,44321.0,0.0415]
[1644257347520,0.2015,44333.0,44322.0,0.0007394]
[1644257347722,0.02094559,44329.0,44323.0,0.0415]
[1644257347919,0.02094559,44329.0,44324.0,0.056393]
[1644257348721,0.02094559,44329.0,44324.0,0.05713237]
[1644257348920,0.01594559,44329.0,44325.0,0.27813262]
[1644257349120,0.01594559,44329.0,44326.0,0.112784]
[1644257349322,0.01094559,44329.0,44326.0,0.112784]
[1644257349522,0.00053566,44331.0,44326.0,0.212784]
[1644257349720,0.2141,44339.0,44326.0,0.212784]
[1644257349721,0.02122043,44337.0,44326.0,0.212784]
[1644257350925,0.02122043,44337.0,44326.0,0.05]
[1644257351380,0.02122043,44337.0,44325.0,0.21336191]
[1644257351577,0.02122043,44337.0,44329.0,0.056398]
[1644257351776,0.02122043,44337.0,44330.0,0.26784578]
[1644257352183,0.003,44343.0,44331.0,0.112776]
[1644257352379,0.26875068,44337.0,44331.0,0.162776]
[1644257352579,0.00053659,44336.0,44331.0,0.162776]
[1644257352780,0.00053659,44336.0,44333.0,0.056387]
[1644257352983,0.00214604,44342.0,44334.0,0.26494199]
[1644257352984,0.25357182,44342.0,44334.0,0.26494199]
[1644257353181,0.25258386,44342.0,44334.0,0.31494199]
[1644257353481,0.25142578,44342.0,44334.0,0.31494199]
[1644257353681,0.19687519,44338.0,44334.0,0.05]
[1644257353883,0.25142578,44342.0,44334.0,0.05]
[1644257354083,0.25142578,44342.0,44331.0,0.4305761]
[1644257354484,0.21730726,44335.0,44327.0,0.29306795]
[1644257354683,0.21230726,44335.0,44327.0,0.45585695]
[1644257354920,0.21230726,44335.0,44327.0,0.40585695]
[1644257355120,0.2319779,44332.0,44329.0,0.056394]
[1644257355321,0.33482,44337.0,44327.0,0.112789]
[1644257355822,0.50973,44337.0,44327.0,0.112789]
[1644257356023,0.2029357,44335.0,44327.0,0.112789]
[1644257356422,0.19834353,44333.0,44327.0,0.112789]
[1644257356623,0.2029357,44335.0,44327.0,0.112789]
[1644257357022,0.06478745,44331.0,44327.0,0.107789]
[1644257357224,0.06478745,44331.0,44329.0,0.00073958]
[1644257357423,0.2029357,44335.0,44329.0,0.00073958]
[1644257358028,0.20208509,44334.0,44329.0,0.00073958]
[1644257358225,0.20208509,44334.0,44326.0,0.178125]
[1644257358425,0.20208509,44334.0,44330.0,0.00073957]
[1644257358680,0.28052062,44334.0,44330.0,0.00073957]
[1644257358872,0.27747462,44334.0,44330.0,0.00073957]
[1644257359473,0.3242236,44333.0,44326.0,0.228125]
[1644257359674,0.22360555,44327.0,44326.0,0.178125]
[1644257359873,0.3242236,44333.0,44326.0,0.178125]
[1644257360579,0.2082,44336.0,44326.0,0.178125]
[1644257360775,0.26982815,44328.0,44327.0,0.0007396]
[1644257361174,0.52676796,44336.0,44327.0,0.0007396]
[1644257361380,0.22363113,44330.0,44327.0,0.0007396]
[1644257361776,0.55,44329.0,44326.0,0.17664581]
[1644257361976,0.55,44329.0,44326.0,0.17738542]
[1644257362175,0.2304686,44327.0,44326.0,0.22738542]
[1644257362620,0.3018336,44330.0,44326.0,0.22738542]
[1644257362821,0.22363113,44330.0,44326.0,0.22738542]
[1644257363020,0.22363113,44330.0,44326.0,0.22664581]
[1644257363823,0.24902744,44327.0,44326.0,0.22664581]
[1644257364425,0.17491,44334.0,44326.0,0.22664581]
[1644257365227,0.24921639,44333.0,44326.0,0.22664581]
[1644257365524,0.20509693,44328.0,44326.0,0.22664581]
[1644257365728,0.24825418,44328.0,44326.0,0.22664581]
[1644257367472,0.0890405,44335.0,44326.0,0.22664581]
[1644257367974,0.0215959,44336.0,44326.0,0.22664581]
[1644257368379,0.22977014,44334.0,44326.0,0.22664581]
[1644257369275,0.24067762,44336.0,44328.0,0.056397]
[1644257369575,0.0215959,44336.0,44328.0,0.056397]
[1644257369775,0.20873457,44337.0,44328.0,0.056397]
[1644257370022,0.01729526,44339.0,44328.0,0.056397]
[1644257370223,0.22865319,44335.0,44328.0,0.056397]
[1644257370522,0.22865319,44335.0,44326.0,0.22664581]
[1644257371227,0.08492576,44333.0,44326.0,0.22664581]
[1644257371824,0.22865319,44335.0,44326.0,0.22664581]
[1644257372522,0.22365319,44335.0,44326.0,0.22664581]
[1644257373024,0.22365319,44335.0,44328.0,0.00057959]
[1644257373871,0.22365319,44335.0,44326.0,0.22664581]
[1644257374072,0.22365319,44335.0,44329.0,0.00073983]
[1644257375172,0.19419639,44335.0,44326.0,0.52664581]
[1644257375371,0.01833795,44340.0,44330.0,0.00073983]
[1644257375372,0.00053409,44339.0,44330.0,0.00073983]
[1644257375773,0.0183275,44338.0,44330.0,0.00073983]
[1644257376174,0.0183275,44338.0,44330.0,0.05073983]
[1644257376375,0.0183275,44338.0,44337.0,0.21883038]
[1644257376674,0.0183275,44338.0,44337.0,0.31883038]
[1644257377524,0.0173275,44338.0,44337.0,0.26883038]
[1644257377725,0.003,44343.0,44337.0,0.31883038]
[1644257377924,0.00016215,44340.0,44337.0,0.26883038]
[1644257378125,0.00016215,44340.0,44339.0,0.05]
[1644257378326,0.00016215,44340.0,44338.0,0.05]
[1644257378524,0.00016215,44340.0,44337.0,0.26883038]
[1644257378730,0.003,44343.0,44337.0,0.26883038]
[1644257378926,0.003,44343.0,44337.0,0.32521838]
[1644257379127,0.003,44343.0,44329.0,0.32186976]
[1644257379128,0.00016241,44341.0,44329.0,0.32186976]
[1644257379329,0.07845846,44335.0,44329.0,0.02186976]
[1644257379526,0.00016241,44341.0,44334.0,0.01836953]
[1644257380028,0.056403,44341.0,44334.0,0.01836953]
[1644257380228,0.056403,44341.0,44327.0,0.3]
[1644257380229,0.85,44339.0,44327.0,0.3]
[1644257380429,0.0183,44335.0,44326.0,0.67664581]
[1644257380629,0.0183,44335.0,44326.0,0.17664581]
[1644257381275,0.24159987,44330.0,44328.0,0.00074201]
[1644257381471,0.24159987,44330.0,44326.0,0.15738782]
[1644257381472,0.3,44329.0,44326.0,0.15738782]
[1644257381670,0.0183,44335.0,44327.0,0.05]
[1644257381872,0.01677528,44335.0,44327.0,0.05]
[1644257382369,0.01677528,44335.0,44327.0,0.045]
[1644257382570,0.01677528,44335.0,44327.0,0.101397]
[1644257382571,0.005,44329.0,44327.0,0.101397]
[1644257382769,0.005,44329.0,44327.0,0.31408291]
[1644257383170,0.00636528,44335.0,44327.0,0.31908291]
[1644257383570,0.00636528,44335.0,44334.0,0.01041]
[1644257384773,0.00636528,44335.0,44334.0,0.066801]
[1644257385028,0.00636528,44335.0,44334.0,0.28656785]
[1644257385227,0.00636528,44335.0,44334.0,0.33656785]
[1644257385428,0.00636528,44335.0,44334.0,0.70629723]
[1644257385629,0.00636528,44335.0,44334.0,0.53624763]
[1644257385931,0.02276199,44344.0,44334.0,0.37583763]
[1644257386128,0.23776606,44343.0,44334.0,0.26976685]
[1644257386328,0.1159182,44343.0,44334.0,0.05]